bitfinex/quotes_SOLUSD_20230113
["timestamp","ask_amount","ask_price","bid_price","bid_amount"]
[1673619424826,17.0,16.563,16.552,20.0]
[1673619425033,17.0,16.563,16.551,111.4908]
[1673619425245,45.29,16.562,16.551,111.4908]
[1673619425779,45.28,16.566,16.551,111.4908]
[1673619425990,17.0,16.565,16.551,111.4908]
[1673619426194,45.28,16.564,16.551,111.4908]
[1673619426409,17.0,16.563,16.551,111.4908]
[1673619426616,45.29,16.562,16.551,111.4908]
[1673619426933,17.0,16.561,16.551,111.4908]
[1673619427144,45.29,16.56,16.551,111.4908]
[1673619427460,17.0,16.559,16.551,111.4908]
[1673619428502,45.3,16.558,16.55,82.55]
[1673619428820,37.0,16.557,16.55,16.58]
[1673619429034,45.31,16.556,16.55,16.58]
[1673619429224,17.0,16.555,16.55,16.58]
[1673619429428,45.31,16.554,16.546,114.6437]
[1673619429970,45.31,16.555,16.546,114.6437]
[1673619431537,45.31,16.556,16.546,114.6437]
[1673619431765,17.0,16.555,16.55,16.49]
[1673619431978,45.31,16.556,16.546,114.6437]
[1673619432176,20.0,16.557,16.55,16.38]
[1673619432385,20.0,16.559,16.55,16.38]
[1673619432598,20.0,16.56,16.55,16.38]
[1673619432819,45.3,16.559,16.55,16.38]
[1673619433128,118.8711,16.567,16.552,20.0]
[1673619433322,20.0,16.566,16.552,20.0]
[1673619433549,40.0,16.566,16.55,82.48]
[1673619433747,62.28,16.565,16.551,117.7385]
[1673619433949,61.78,16.565,16.551,117.7385]
[1673619438068,61.28,16.565,16.552,20.0]
[1673619438383,61.28,16.565,16.551,117.7385]
[1673619440278,61.28,16.565,16.552,20.0]
[1673619440592,61.28,16.565,16.551,117.7385]
[1673619444799,45.28,16.565,16.551,117.7385]
[1673619445408,17.0,16.564,16.551,117.7385]
[1673619445629,45.29,16.563,16.551,117.7385]
[1673619445839,17.0,16.562,16.551,117.7385]
[1673619446069,45.29,16.561,16.551,117.7385]
[1673619446267,17.0,16.56,16.551,117.7385]
[1673619449626,45.28,16.564,16.551,117.7385]
[1673619449844,45.28,16.565,16.552,17.0]
[1673619450055,45.28,16.565,16.553,20.0]
[1673619450258,20.0,16.566,16.553,20.0]
[1673619450463,20.0,16.567,16.553,20.0]
[1673619450684,45.28,16.566,16.553,20.0]
[1673619451002,45.28,16.566,16.551,117.7385]
[1673619451831,17.0,16.565,16.552,37.0]
[1673619452045,45.28,16.564,16.552,37.0]
[1673619453006,45.28,16.566,16.552,49.95]
[1673619453201,45.28,16.566,16.552,37.0]
[1673619453849,45.28,16.566,16.552,66.8800799]
[1673619454465,20.0,16.577,16.56,16.49]
[1673619454678,23.912,16.578,16.56,130.351]
[1673619454679,20.0,16.576,16.56,130.351]
[1673619454883,23.912,16.578,16.56,196.311]
[1673619455097,45.25,16.577,16.56,196.411]
[1673619455428,20.0,16.576,16.561,20.0]
[1673619455614,45.25,16.575,16.561,20.0]
[1673619456471,17.0,16.574,16.561,20.0]
[1673619456681,45.26,16.573,16.56,308.6246]
[1673619456986,17.0,16.572,16.56,308.6246]
[1673619457186,45.26,16.571,16.56,308.6246]
[1673619457401,17.0,16.57,16.56,308.6246]
[1673619460137,45.25,16.575,16.56,308.6246]
[1673619460346,45.25,16.575,16.561,37.0]
[1673619461109,45.25,16.575,16.56,308.6246]
[1673619461521,17.0,16.574,16.56,308.6246]
[1673619461828,45.26,16.573,16.56,308.6246]
[1673619462026,17.0,16.572,16.561,20.0]
[1673619462236,45.26,16.571,16.561,20.0]
[1673619463085,45.25,16.575,16.562,17.0]
[1673619463409,45.25,16.575,16.563,20.0]
[1673619463935,45.25,16.575,16.564,17.0]
[1673619464140,45.25,16.575,16.565,20.0]
[1673619464331,81.0039,16.587,16.566,17.0]
[1673619464542,81.0039,16.587,16.57,82.27]
[1673619464766,81.0039,16.587,16.571,20.0]
[1673619465008,45.22,16.586,16.571,20.0]
[1673619465428,45.22,16.587,16.571,20.0]
[1673619465829,45.22,16.587,16.572,17.0]
[1673619466036,20.0,16.586,16.573,20.0]
[1673619466251,45.23,16.585,16.58,16.49]
[1673619466461,45.21,16.59,16.58,16.49]
[1673619466895,45.21,16.59,16.58,82.45]
[1673619467087,50.43712645,16.591,16.58,82.45]
[1673619467088,45.2,16.595,16.58,82.52]
[1673619467307,45.2,16.595,16.581,20.0]
[1673619468146,45.2,16.595,16.58,82.52]
[1673619469211,45.2,16.595,16.581,20.0]
[1673619469427,17.0,16.594,16.581,20.0]
[1673619469633,45.2,16.593,16.581,20.0]
[1673619471193,17.0,16.594,16.581,20.0]
[1673619471529,45.2,16.593,16.581,20.0]
[1673619472052,17.0,16.594,16.581,20.0]
[1673619474261,45.2,16.595,16.581,49.8800799]
[1673619474451,45.19,16.597,16.582,17.0]
[1673619474667,20.0,16.596,16.59,16.47]
[1673619474876,20.0,16.596,16.582,17.0]
[1673619474877,0.02201054,16.589,16.582,17.0]
[1673619476025,0.02201054,16.589,16.581,116.1724]
[1673619476988,0.02201054,16.589,16.58,82.59]
[1673619477198,0.02201054,16.589,16.58,16.63]
[1673619477396,45.22,16.588,16.58,16.63]
[1673619478026,0.02201054,16.589,16.58,16.63]
[1673619480677,45.22,16.588,16.58,16.63]
[1673619480884,17.0,16.587,16.58,16.63]
[1673619481084,65.22,16.586,16.574,114.5513]
[1673619481504,65.22,16.586,16.575,20.0]
[1673619481725,65.22,16.586,16.58,16.34]
[1673619492987,65.22,16.586,16.574,114.5513]
[1673619492988,17.0,16.585,16.574,114.5513]
[1673619493303,45.23,16.584,16.574,114.5513]
[1673619493515,17.0,16.583,16.574,114.5513]
[1673619493722,45.23,16.582,16.574,114.5513]
[1673619494868,17.0,16.581,16.57,82.41]
[1673619495494,45.24,16.58,16.57,82.41]
[1673619495721,17.0,16.579,16.57,82.41]
[1673619497394,17.0,16.579,16.57,16.45]
[1673619497597,65.25,16.578,16.563,116.8698]
[1673619497814,20.0,16.576,16.563,116.8698]
[1673619498022,45.25,16.575,16.563,116.8698]
[1673619498234,17.0,16.574,16.563,116.8698]
[1673619498444,45.26,16.573,16.563,116.8698]
[1673619498751,17.0,16.572,16.563,116.8698]
[1673619498967,45.26,16.571,16.563,116.8698]
[1673619499187,17.0,16.57,16.563,116.8698]
[1673619499375,45.26,16.571,16.563,116.8698]
[1673619499590,20.0,16.576,16.563,116.8698]
[1673619499591,17.0,16.57,16.563,116.8698]
[1673619499803,17.0,16.57,16.561,20.0]
[1673619500013,45.25,16.575,16.561,20.0]
[1673619500223,17.0,16.574,16.561,20.0]
[1673619500430,45.26,16.573,16.561,20.0]
[1673619501189,45.26,16.573,16.562,17.0]
[1673619504542,17.0,16.572,16.56,196.351]
[1673619504755,45.26,16.571,16.56,196.351]
[1673619504954,17.0,16.57,16.56,196.351]
[1673619505711,45.26,16.574,16.561,20.0]
[1673619505902,17.0,16.573,16.561,20.0]
[1673619506108,45.26,16.572,16.561,20.0]
[1673619507717,45.26,16.572,16.56,196.351]
[1673619507927,45.25,16.576,16.561,46.8800799]
[1673619508121,45.25,16.577,16.57,16.38]
[1673619508325,20.0,16.576,16.57,16.38]
[1673619508977,20.0,16.579,16.57,16.38]
[1673619509191,62.25,16.578,16.57,16.38]
[1673619509387,20.0,16.577,16.57,16.38]
[1673619509712,45.25,16.576,16.57,16.38]
[1673619510023,20.0,16.577,16.57,16.38]
[1673619510239,20.0,16.581,16.57,16.38]
[1673619510430,45.24,16.58,16.57,16.38]
[1673619510640,20.0,16.579,16.57,16.38]
[1673619510870,45.25,16.578,16.57,16.38]
[1673619511061,37.0,16.577,16.57,16.38]
[1673619511705,45.25,16.576,16.57,16.38]
[1673619511914,37.0,16.577,16.57,16.38]
[1673619513390,45.25,16.576,16.57,16.38]
[1673619513601,17.0,16.575,16.57,16.38]
[1673619513813,17.0,16.575,16.564,128.934]
[1673619515390,45.25,16.576,16.565,17.0]
[1673619515578,20.0,16.577,16.57,16.38]
[1673619515790,62.25,16.576,16.57,16.38]
[1673619516000,17.0,16.576,16.57,16.38]
[1673619516213,17.0,16.577,16.57,16.38]
[1673619516422,65.25,16.576,16.564,108.934]
[1673619516637,17.0,16.575,16.564,108.934]
[1673619516847,45.26,16.574,16.564,108.934]
[1673619517057,17.0,16.573,16.564,108.934]
[1673619517799,17.0,16.574,16.564,108.934]
[1673619518981,45.26,16.573,16.554,20.0]
[1673619519180,37.0,16.572,16.551,220.8356]
[1673619519387,65.26,16.571,16.551,220.8356]
[1673619519606,20.0,16.569,16.551,220.8356]
[1673619519819,20.0,16.567,16.551,220.8356]
[1673619520031,65.28,16.566,16.551,220.8356]
[1673619520241,17.0,16.565,16.551,220.8356]
[1673619520551,45.28,16.564,16.551,220.8356]
[1673619520759,17.0,16.563,16.551,220.8356]
[1673619521079,45.29,16.562,16.551,220.8356]
[1673619521269,17.0,16.561,16.551,220.8356]
[1673619521474,45.29,16.562,16.551,250.7156799]
[1673619521705,45.29,16.562,16.552,37.0]
[1673619521919,45.28,16.565,16.552,37.0]
[1673619522117,45.28,16.565,16.553,49.8800799]
[1673619522445,45.28,16.565,16.554,17.0]
[1673619522643,45.28,16.565,16.555,20.0]
[1673619522850,111.4958,16.574,16.56,16.34]
[1673619523063,20.0,16.578,16.56,16.34]
[1673619523274,144.41204677,16.577,16.56,16.34]
[1673619523600,20.0,16.575,16.56,16.34]
[1673619523805,45.26,16.574,16.56,16.34]
[1673619524019,17.0,16.573,16.56,16.34]
[1673619524230,45.26,16.572,16.56,16.34]
[1673619524438,17.0,16.571,16.56,16.34]
[1673619524759,45.27,16.57,16.56,16.34]
[1673619524946,17.0,16.569,16.56,16.34]
[1673619527179,45.26,16.574,16.56,16.34]
[1673619527375,45.25,16.576,16.561,37.0]
[1673619528534,45.25,16.576,16.561,32.0]
[1673619528748,17.0,16.575,16.561,32.0]
[1673619528961,45.26,16.574,16.561,32.0]
[1673619529903,45.25,16.576,16.561,74.6800799]
[1673619530106,45.25,16.576,16.57,16.49]
[1673619530853,20.0,16.577,16.57,16.49]
[1673619531072,20.0,16.578,16.57,16.49]
[1673619531258,45.25,16.577,16.57,16.49]
[1673619531470,20.0,16.576,16.57,16.49]
[1673619532105,20.0,16.58,16.57,16.49]
[1673619532312,62.24,16.579,16.57,16.49]
[1673619532524,20.0,16.578,16.57,16.49]
[1673619532731,45.25,16.577,16.57,16.49]
[1673619533170,20.0,16.576,16.57,16.49]
[1673619533787,20.0,16.577,16.57,16.49]
[1673619534428,17.0,16.576,16.57,16.49]
[1673619534851,62.25,16.576,16.57,16.49]
[1673619541786,45.25,16.576,16.57,16.49]
[1673619541996,20.0,16.577,16.566,20.0]
[1673619542204,45.25,16.576,16.566,20.0]
[1673619542416,45.24,16.579,16.566,20.0]
[1673619542634,20.0,16.578,16.566,20.0]
[1673619542835,45.25,16.577,16.566,20.0]
[1673619543151,37.0,16.576,16.566,20.0]
[1673619543565,37.0,16.576,16.565,118.008]
[1673619544762,45.25,16.575,16.565,118.008]
[1673619545152,20.0,16.576,16.565,118.008]
[1673619545485,45.25,16.575,16.565,118.008]
[1673619545798,45.25,16.577,16.565,118.008]
[1673619546017,20.0,16.576,16.565,118.008]
[1673619546198,45.25,16.575,16.565,118.008]
[1673619549263,20.0,16.576,16.566,20.0]
[1673619549465,20.0,16.578,16.566,20.0]
[1673619549679,62.25,16.577,16.566,20.0]
[1673619549888,17.0,16.577,16.566,20.0]
[1673619550216,20.0,16.576,16.565,118.008]
[1673619550848,20.0,16.576,16.566,20.0]
[1673619554004,20.0,16.576,16.57,16.47]
[1673619558314,20.0,16.576,16.57,12.32]
[1673619559151,45.24,16.58,16.57,12.32]
[1673619559364,43.66469336,16.59,16.57,12.32]
[1673619559365,45.23,16.583,16.571,17.0]
[1673619559564,45.22,16.586,16.572,20.0]
[1673619560301,45.22,16.586,16.571,37.0]
[1673619560506,17.0,16.585,16.57,62.01]
[1673619560713,45.23,16.584,16.57,62.01]
[1673619560929,17.0,16.583,16.57,62.01]
[1673619561265,45.23,16.582,16.57,62.01]
[1673619561463,17.0,16.581,16.57,62.01]
[1673619561783,45.23,16.582,16.57,62.01]
[1673619561993,45.23,16.585,16.571,37.0]
[1673619563024,17.0,16.584,16.571,37.0]
[1673619563249,45.23,16.583,16.571,17.0]
[1673619563464,45.23,16.583,16.57,62.01]
[1673619563657,17.0,16.582,16.57,62.01]
[1673619564286,62.23,16.583,16.57,62.01]
[1673619565669,20.0,16.582,16.57,62.01]
[1673619565983,62.24,16.581,16.57,62.01]
[1673619566177,40.0,16.58,16.57,12.47]
[1673619566385,62.24,16.579,16.57,12.47]
[1673619566605,20.0,16.578,16.561,15.0]
[1673619566826,62.25,16.577,16.561,15.0]
[1673619567045,20.0,16.576,16.56,286.0783]
[1673619567353,62.25,16.575,16.56,286.0783]
[1673619570100,62.25,16.575,16.561,17.0]
[1673619570313,45.25,16.575,16.561,17.0]
[1673619572824,20.0,16.576,16.561,29.8]
[1673619573036,20.0,16.576,16.57,12.41]
[1673619573248,20.0,16.579,16.57,12.41]
[1673619573463,45.25,16.578,16.57,12.41]
[1673619573771,20.0,16.577,16.57,12.41]
[1673619573979,45.25,16.576,16.57,12.41]
[1673619574823,20.0,16.577,16.57,12.41]
[1673619575015,20.0,16.58,16.57,12.41]
[1673619575226,62.24,16.579,16.57,12.41]
[1673619575436,20.0,16.578,16.57,12.41]
[1673619575650,45.25,16.577,16.57,12.41]
[1673619576300,20.0,16.576,16.57,12.41]
[1673619576703,20.0,16.577,16.57,12.41]
[1673619577962,45.23,16.582,16.57,62.05]
[1673619578171,17.0,16.581,16.57,62.03]
[1673619578381,45.24,16.58,16.57,62.03]
[1673619578612,45.24,16.581,16.57,62.03]
[1673619578826,45.23,16.582,16.57,62.03]
[1673619579034,17.0,16.581,16.571,20.0]
[1673619579761,17.0,16.581,16.57,62.03]
[1673619580190,17.0,16.582,16.57,62.03]
[1673619580379,45.24,16.581,16.57,62.03]
[1673619581662,45.24,16.581,16.571,20.0]
[1673619581978,45.23,16.585,16.572,17.0]
[1673619582192,45.22,16.586,16.572,17.0]
[1673619583538,17.0,16.585,16.57,124.4800799]
[1673619583879,45.23,16.584,16.57,74.6]
[1673619584058,17.0,16.583,16.57,62.03]
[1673619584274,45.23,16.582,16.57,62.03]
[1673619584481,17.0,16.581,16.57,62.03]
[1673619584705,45.24,16.58,16.57,62.03]
[1673619585138,17.0,16.581,16.57,62.03]
[1673619585319,45.23,16.583,16.57,62.03]
[1673619585529,45.23,16.585,16.57,62.03]
[1673619585740,17.0,16.584,16.57,62.03]
[1673619585951,45.23,16.583,16.571,20.0]
[1673619586273,45.23,16.583,16.57,62.03]
[1673619586477,17.0,16.582,16.57,62.03]
[1673619586688,45.24,16.581,16.57,62.03]
[1673619587333,45.24,16.581,16.571,37.0]
[1673619587552,45.23,16.585,16.571,37.0]
[1673619587740,17.0,16.584,16.571,37.0]
[1673619587949,45.23,16.583,16.571,37.0]
[1673619588282,45.23,16.584,16.571,37.0]
[1673619588479,17.0,16.583,16.571,37.0]
[1673619588691,45.23,16.582,16.571,17.0]
[1673619589137,45.23,16.582,16.57,62.03]
[1673619589346,17.0,16.581,16.57,62.03]
[1673619589989,45.24,16.58,16.57,62.03]
[1673619590192,17.0,16.579,16.57,62.03]
[1673619594818,17.0,16.58,16.57,62.03]
[1673619598813,45.24,16.579,16.57,62.03]
[1673619599041,37.0,16.578,16.57,12.42]
[1673619599351,45.25,16.577,16.57,12.42]
[1673619599662,37.0,16.576,16.563,396.6]
[1673619599854,37.0,16.576,16.561,109.1322]
[1673619599855,45.25,16.575,16.561,109.1322]
[1673619600189,17.0,16.574,16.561,109.1322]
[1673619600396,45.26,16.573,16.561,109.1322]
[1673619601342,17.0,16.572,16.561,109.1322]
[1673619602481,45.26,16.571,16.561,109.1322]
[1673619603662,17.0,16.57,16.561,109.1322]
[1673619604801,17.0,16.571,16.561,109.1322]
[1673619605212,65.27,16.57,16.56,12.44]
[1673619605421,17.0,16.569,16.56,12.44]
[1673619605628,65.27,16.568,16.56,12.44]
[1673619609012,20.0,16.568,16.56,12.44]
[1673619609222,45.26,16.573,16.56,12.44]
[1673619609433,17.0,16.572,16.56,62.13]
[1673619609629,45.26,16.571,16.56,62.13]
[1673619609857,17.0,16.573,16.56,62.13]
[1673619609858,45.26,16.572,16.56,62.13]
[1673619610048,17.0,16.571,16.56,175.4821]
[1673619611544,45.26,16.574,16.56,175.4821]
[1673619611950,17.0,16.573,16.561,20.0]
[1673619612393,45.25,16.577,16.561,20.0]
[1673619612592,20.0,16.576,16.57,12.38]
[1673619613229,20.0,16.577,16.57,12.38]
[1673619613839,20.0,16.58,16.57,12.38]
[1673619614054,62.24,16.579,16.57,12.38]
[1673619614260,20.0,16.578,16.57,12.38]
[1673619614471,45.25,16.577,16.57,12.38]
[1673619614784,20.0,16.576,16.57,12.38]
[1673619615210,20.0,16.58,16.57,12.38]
[1673619615418,62.24,16.579,16.57,12.38]
[1673619615641,20.0,16.578,16.57,12.38]
[1673619616063,45.25,16.577,16.57,12.38]
[1673619616255,20.0,16.576,16.57,12.38]
[1673619616676,20.0,16.577,16.57,12.38]
[1673619618065,62.25,16.576,16.561,396.6]
[1673619618465,20.0,16.575,16.561,396.6]
[1673619618698,45.26,16.574,16.561,396.6]
[1673619618884,17.0,16.576,16.56,175.4621]
[1673619618885,45.25,16.575,16.56,175.4621]
[1673619619096,45.25,16.575,16.561,37.0]
[1673619622066,45.25,16.575,16.561,17.0]
[1673619622379,45.25,16.575,16.56,175.4621]
[1673619622593,17.0,16.574,16.56,175.4621]
[1673619622780,45.26,16.573,16.56,175.4621]
[1673619622995,17.0,16.572,16.56,175.4621]
[1673619623317,45.26,16.571,16.56,175.4621]
[1673619623961,17.0,16.57,16.56,175.4621]
[1673619625221,45.26,16.573,16.56,175.4621]
[1673619625527,45.25,16.575,16.562,20.0]
[1673619625740,45.25,16.576,16.562,20.0]
[1673619625936,45.25,16.576,16.563,17.0]
[1673619626891,17.0,16.575,16.563,17.0]
[1673619627109,45.26,16.574,16.563,17.0]
[1673619628053,20.0,16.577,16.563,17.0]
[1673619628054,45.25,16.576,16.563,46.8800799]
[1673619628236,45.25,16.576,16.57,12.41]
[1673619629097,17.0,16.575,16.57,12.41]
[1673619629304,17.0,16.575,16.561,20.0]
[1673619629626,45.26,16.574,16.562,17.0]
[1673619630341,45.26,16.574,16.56,175.4621]
[1673619630554,17.0,16.573,16.56,175.4621]
[1673619630769,45.26,16.572,16.561,17.0]
[1673619632571,45.25,16.575,16.561,17.0]
[1673619632761,17.0,16.574,16.561,17.0]
[1673619632972,45.26,16.573,16.561,17.0]
[1673619633725,37.0,16.572,16.553,20.0]
[1673619633978,45.26,16.571,16.551,116.7986]
[1673619634285,37.0,16.57,16.551,232.6125]
[1673619634474,65.27,16.569,16.551,232.6125]
[1673619634684,37.0,16.568,16.551,232.6125]
[1673619634895,45.28,16.567,16.551,232.6125]
[1673619635105,17.0,16.566,16.551,232.6125]
[1673619635335,45.28,16.565,16.551,232.6125]
[1673619635645,17.0,16.564,16.551,232.6125]
[1673619635844,45.29,16.563,16.551,232.6125]
[1673619637214,45.29,16.563,16.552,17.0]
[1673619637423,45.28,16.567,16.552,37.0]
[1673619637636,37.0,16.566,16.552,17.0]
[1673619637828,45.28,16.565,16.552,17.0]
[1673619639421,17.0,16.564,16.551,232.6125]
[1673619639744,45.29,16.563,16.551,232.6125]
[1673619642379,45.28,16.565,16.551,232.6125]
[1673619643125,17.0,16.564,16.551,232.6125]
[1673619643342,45.29,16.563,16.551,232.6125]
[1673619643647,45.28,16.565,16.551,232.6125]
[1673619644056,45.28,16.565,16.56,12.41]
[1673619644264,45.28,16.565,16.551,232.6125]
[1673619644474,17.0,16.564,16.551,232.6125]
[1673619644678,45.29,16.563,16.551,232.6125]
[1673619645122,45.29,16.563,16.552,20.0]
[1673619645315,45.28,16.565,16.552,20.0]
[1673619645531,45.28,16.565,16.56,12.32]
[1673619647970,45.29,16.561,16.551,232.6125]
[1673619648152,17.0,16.56,16.551,232.6125]
[1673619648573,45.28,16.564,16.551,232.6125]
[1673619648893,17.0,16.563,16.551,232.6125]
[1673619649100,45.29,16.562,16.551,232.6125]
[1673619649310,17.0,16.561,16.551,232.6125]
[1673619649849,45.28,16.564,16.551,232.6125]
[1673619650038,45.28,16.565,16.552,20.0]
[1673619651426,17.0,16.564,16.552,20.0]
[1673619651634,45.29,16.563,16.552,20.0]
[1673619651850,45.29,16.563,16.551,232.6125]
[1673619653530,45.29,16.563,16.552,20.0]
[1673619655635,45.28,16.565,16.553,17.0]
[1673619655825,45.28,16.565,16.56,12.38]
[1673619660147,20.0,16.566,16.56,12.38]
[1673619660361,20.0,16.567,16.56,12.38]
[1673619660675,20.0,16.577,16.56,12.38]
[1673619660676,78.8447,16.578,16.56,62.11]
[1673619660870,20.0,16.577,16.562,20.0]
[1673619661080,20.0,16.577,16.57,12.32]
[1673619661290,45.25,16.576,16.57,12.32]
[1673619662884,17.0,16.575,16.57,12.32]
[1673619663095,17.0,16.575,16.562,20.0]
[1673619663290,17.0,16.575,16.563,17.0]
[1673619663499,17.0,16.575,16.561,143.6224]
[1673619663722,45.25,16.576,16.562,20.0]
[1673619663929,37.0,16.575,16.561,123.6224]
[1673619664986,45.25,16.576,16.561,123.6224]
[1673619665176,45.25,16.576,16.563,20.0]
[1673619665392,45.25,16.576,16.564,17.0]
[1673619666337,20.0,16.577,16.565,12.73]
[1673619666550,20.0,16.577,16.564,12.73]
[1673619666876,20.0,16.579,16.57,12.41]
[1673619667086,45.25,16.578,16.57,12.41]
[1673619667278,20.0,16.577,16.57,12.41]
[1673619667721,20.0,16.579,16.57,12.41]
[1673619667916,45.25,16.578,16.57,12.41]
[1673619668127,20.0,16.577,16.57,12.41]
[1673619668759,62.25,16.576,16.57,12.41]
[1673619672538,20.0,16.575,16.561,110.7024]
[1673619672745,17.0,16.574,16.561,110.7024]
[1673619673609,45.26,16.573,16.561,110.7024]
[1673619673924,17.0,16.572,16.561,110.7024]
[1673619674332,17.0,16.573,16.561,110.7024]
[1673619674528,45.26,16.572,16.561,110.7024]
[1673619674745,17.0,16.571,16.56,172.9916]
[1673619675177,45.27,16.57,16.56,172.9916]
[1673619682854,20.0,16.579,16.561,66.8800799]
[1673619683078,20.0,16.58,16.57,12.32]
[1673619683292,20.0,16.577,16.57,12.32]
[1673619683474,45.25,16.576,16.57,12.32]
[1673619683805,45.25,16.578,16.57,12.32]
[1673619684014,20.0,16.577,16.57,12.32]
[1673619684749,20.0,16.579,16.57,12.32]
[1673619684957,20.0,16.585,16.57,12.32]
[1673619684958,20.0,16.585,16.57,61.92]
[1673619685370,20.0,16.591,16.57,61.92]
[1673619685582,65.22,16.586,16.571,20.0]
[1673619686103,65.22,16.586,16.57,61.92]
[1673619686437,65.22,16.586,16.572,20.0]
[1673619687666,65.22,16.586,16.58,12.39]
[1673619688320,20.0,16.586,16.58,12.39]
[1673619688636,20.0,16.591,16.58,12.39]
[1673619688847,45.21,16.59,16.58,12.39]
[1673619689157,45.21,16.59,16.58,62.03]
[1673619689369,37.0,16.589,16.58,61.96]
[1673619690634,45.21,16.591,16.58,61.96]
[1673619690635,45.21,16.591,16.581,20.0]
[1673619690825,45.2,16.595,16.581,20.0]
[1673619691238,45.2,16.595,16.58,61.96]
[1673619691883,17.0,16.594,16.58,61.96]
[1673619692107,20.0,16.592,16.58,12.4]
[1673619692305,62.21,16.591,16.58,12.4]
[1673619692729,40.0,16.59,16.58,12.4]
[1673619692947,62.22,16.589,16.58,12.4]
[1673619693261,20.0,16.588,16.58,12.4]
[1673619693468,62.22,16.587,16.58,12.4]
[1673619693678,20.0,16.586,16.58,12.4]
[1673619693895,62.23,16.585,16.58,12.4]
[1673619694092,62.23,16.585,16.573,118.3951]
[1673619700935,45.23,16.585,16.573,118.3951]
[1673619701252,45.22,16.587,16.574,20.0]
[1673619701467,20.0,16.586,16.574,20.0]
[1673619702080,45.23,16.585,16.574,20.0]
[1673619702405,45.22,16.586,16.573,118.3951]
[1673619702623,17.0,16.585,16.573,118.3951]
[1673619702939,45.23,16.584,16.573,118.3951]
[1673619703139,17.0,16.583,16.573,118.3951]
[1673619704305,45.23,16.582,16.573,118.3951]